bitfinex-derivatives/quotes_BTCF0:USTF0_20250929
["timestamp","ask_amount","ask_price","bid_price","bid_amount"]
[1759150569289,0.29373185,112110.0,112100.0,0.4725848]
[1759150569595,0.28073185,112110.0,112100.0,0.4861948]
[1759150569989,0.28873185,112110.0,112100.0,0.4861948]
[1759150570195,0.0179,112110.0,112100.0,0.4861948]
[1759150570387,0.0139,112110.0,112100.0,0.4861948]
[1759150570895,0.27173185,112110.0,112100.0,0.4861948]
[1759150571690,0.30773185,112110.0,112100.0,0.4921948]
[1759150572288,0.39688905,112110.0,112100.0,0.4921948]
[1759150572484,0.30773185,112110.0,112100.0,0.4921948]
[1759150574188,0.30773185,112110.0,112100.0,0.75008015]
[1759150574189,0.30778535,112110.0,112100.0,0.75008015]
[1759150577699,0.39694255,112110.0,112100.0,0.4921948]
[1759150577895,0.30778535,112110.0,112100.0,0.4921948]
[1759150578399,0.32072535,112110.0,112100.0,0.4921948]
[1759150579990,0.32954568,112110.0,112100.0,0.4921948]
[1759150580196,0.31660568,112110.0,112100.0,0.4921948]
[1759150580397,0.31660568,112110.0,112100.0,0.75008015]
[1759150584396,0.31660568,112110.0,112100.0,0.4921948]
[1759150584597,0.31660568,112110.0,112100.0,0.75008015]
[1759150584797,0.32954568,112110.0,112100.0,0.75008015]
[1759150585205,0.32954568,112110.0,112100.0,0.4785848]
[1759150585595,0.32954568,112110.0,112100.0,0.73647015]
[1759150586203,0.41870288,112110.0,112100.0,0.73647015]
[1759150586507,0.41870288,112110.0,112100.0,0.4785848]
[1759150588203,0.43939391,112110.0,112100.0,0.4785848]
[1759150588606,0.43939391,112110.0,112100.0,0.4777848]
[1759150589008,0.43939391,112110.0,112100.0,0.4781848]
[1759150591411,0.46032581,112110.0,112100.0,0.4781848]
[1759150592201,1.02468046,112110.0,112100.0,0.4781848]
[1759150592512,1.28256581,112110.0,112100.0,0.4781848]
[1759150593812,1.28256581,112110.0,112100.0,0.4781851]
[1759150594002,1.28256581,112110.0,112100.0,0.4777851]
[1759150594199,1.28256581,112110.0,112100.0,0.52575312]
[1759150594406,1.28256581,112110.0,112100.0,0.52615312]
[1759150594908,1.28232581,112110.0,112100.0,0.4781851]
[1759150595815,1.28232581,112110.0,112100.0,0.38902]
[1759150595816,1.54021116,112110.0,112100.0,0.38902]
[1759150596010,1.94021116,112110.0,112100.0,0.3668]
[1759150596402,1.97222323,112110.0,112100.0,0.0064]
[1759150597408,0.1244451,112100.0,112090.0,0.3616]
[1759150597614,0.6611477,112100.0,112090.0,0.3608]
[1759150598206,0.1244531,112090.0,112080.0,0.38539]
[1759150598411,1.22559035,112090.0,112080.0,0.38539]
[1759150598609,1.21859035,112090.0,112080.0,0.474571]
[1759150599911,0.46608643,112090.0,112080.0,0.474571]
[1759150600116,1.28840643,112090.0,112080.0,0.474571]
[1759150600318,1.30640643,112090.0,112080.0,0.474571]
[1759150600717,0.48408643,112090.0,112080.0,0.474571]
[1759150601011,1.30632643,112090.0,112080.0,0.474571]
[1759150601217,1.28832643,112090.0,112080.0,0.474571]
[1759150601406,1.33016643,112090.0,112080.0,0.477571]
[1759150601813,0.25020108,112090.0,112080.0,0.477571]
[1759150602021,1.33008643,112090.0,112080.0,0.477571]
[1759150602431,0.50808643,112090.0,112080.0,0.477571]
[1759150602720,1.33000643,112090.0,112080.0,0.477571]
[1759150603907,1.58789178,112090.0,112080.0,0.477571]
[1759150605411,1.58789178,112090.0,112080.0,0.476771]
[1759150605718,1.58789178,112090.0,112080.0,0.477171]
[1759150606114,1.58789178,112090.0,112080.0,0.476771]
[1759150606314,0.76597178,112090.0,112080.0,0.476771]
[1759150606517,1.58773178,112090.0,112080.0,0.477171]
[1759150607920,1.58777178,112090.0,112080.0,0.477171]
[1759150608418,0.76597178,112090.0,112080.0,0.477171]
[1759150608723,1.32988643,112090.0,112080.0,0.491061]
[1759150609024,1.32988643,112090.0,112080.0,0.477171]
[1759150609217,0.25020108,112090.0,112080.0,0.477171]
[1759150609418,1.32988643,112090.0,112080.0,0.477171]
[1759150611422,0.50808643,112090.0,112080.0,0.477171]
[1759150611625,1.32988643,112090.0,112080.0,0.477171]
[1759150612825,0.50808643,112090.0,112080.0,0.477171]
[1759150613019,1.32988643,112090.0,112080.0,0.477171]
[1759150614428,1.58777178,112090.0,112080.0,0.477171]
[1759150615021,0.41297333,112090.0,112080.0,0.74894635]
[1759150615328,1.19366143,112090.0,112080.0,1.0068317]
[1759150615528,1.23895545,112090.0,112080.0,0.74894635]
[1759150615829,0.41499545,112090.0,112080.0,0.74894635]
[1759150616628,0.1339401,112090.0,112080.0,1.0068317]
[1759150616828,0.1339401,112090.0,112080.0,1.4068317]
[1759150617024,0.06412402,112090.0,112080.0,1.4068317]
[1759150617217,0.042,112090.0,112080.0,1.4068317]
[1759150617730,0.042,112090.0,112080.0,2.2311517]
[1759150617921,0.042,112090.0,112080.0,1.4068317]
[1759150618220,0.29988535,112090.0,112080.0,1.4068317]
[1759150618423,0.41222845,112090.0,112080.0,1.97229635]
[1759150619031,0.41222845,112090.0,112080.0,1.14805635]
[1759150619230,0.32305535,112090.0,112080.0,1.14805635]
[1759150620425,0.32305535,112090.0,112080.0,1.57237635]
[1759150620724,0.32305535,112090.0,112080.0,0.74805635]
[1759150622326,0.06517,112090.0,112080.0,0.74805635]
[1759150622522,0.32305535,112090.0,112080.0,0.74805635]
[1759150623230,0.33682535,112090.0,112080.0,0.490171]
[1759150623631,0.33682535,112090.0,112080.0,0.74765635]
[1759150624334,0.33682535,112090.0,112080.0,0.74805635]
[1759150627230,0.32305535,112090.0,112080.0,0.74805635]
[1759150627935,0.41222845,112090.0,112080.0,0.74805635]
[1759150628240,0.42599845,112090.0,112080.0,0.74805635]
[1759150628626,0.1681131,112090.0,112080.0,0.490171]
[1759150628833,0.42599845,112090.0,112080.0,0.476281]
[1759150629530,0.33682535,112090.0,112080.0,0.476281]
[1759150630338,1.15970535,112090.0,112080.0,0.476281]
[1759150631239,0.33682535,112090.0,112080.0,0.476281]
[1759150631433,1.15970535,112090.0,112080.0,0.476281]
[1759150634339,1.15982924,112090.0,112080.0,0.476281]
[1759150635534,1.181596,112090.0,112080.0,0.476281]
[1759150636236,0.358716,112090.0,112080.0,0.476281]
[1759150636436,1.181396,112090.0,112080.0,0.476281]
[1759150637541,0.08693676,112090.0,112080.0,0.489521]
[1759150637742,1.167546,112090.0,112080.0,0.489521]
[1759150638540,1.181306,112090.0,112080.0,0.489521]
[1759150638747,1.2704791,112090.0,112080.0,0.476281]
[1759150638946,1.2704791,112090.0,112080.0,0.475881]
[1759150639433,1.2704791,112090.0,112080.0,0.476281]
[1759150640037,1.24871234,112090.0,112080.0,0.476281]
[1759150640945,0.44788204,112090.0,112080.0,0.476281]
[1759150641145,1.27004204,112090.0,112080.0,0.476281]
[1759150641846,0.44788204,112090.0,112080.0,0.476281]
[1759150642047,1.26984204,112090.0,112080.0,0.476281]
[1759150642347,1.26980204,112090.0,112080.0,0.489921]
[1759150642552,1.16686894,112090.0,112080.0,0.489921]
[1759150642744,1.25604204,112090.0,112080.0,0.489921]
[1759150642944,0.44788204,112090.0,112080.0,0.489921]
[1759150643141,1.26980204,112090.0,112080.0,0.476281]
[1759150644051,1.63060204,112090.0,112080.0,0.0263]
[1759150644252,1.26980204,112090.0,112080.0,0.115481]
[1759150644448,1.54845156,112090.0,112080.0,0.003]
[1759150644654,2.30925156,112090.0,112080.0,0.003]
[1759150644844,2.30925156,112090.0,112080.0,0.0034]
[1759150645042,2.30925156,112090.0,112080.0,0.003]
[1759150645253,1.51934363,112090.0,112080.0,0.003]
[1759150645746,2.34346363,112090.0,112080.0,0.003]
[1759150645944,2.34346363,112090.0,112080.0,0.0034]
[1759150646146,1.82744515,112090.0,112080.0,0.0034]
[1759150646349,2.34394363,112090.0,112080.0,0.0034]
[1759150646953,2.34394363,112090.0,112080.0,0.02568]
[1759150647252,2.34394363,112090.0,112080.0,0.0034]
[1759150647549,2.34445363,112090.0,112080.0,0.0034]
[1759150647749,2.34457363,112090.0,112080.0,0.02568]
[1759150647952,2.34457363,112090.0,112080.0,0.0034]
[1759150648348,2.31256156,112090.0,112080.0,0.0034]
[1759150650045,2.31256156,112090.0,112080.0,0.00429]
[1759150650750,1.48784156,112090.0,112080.0,0.00429]
[1759150651054,2.34437789,112090.0,112080.0,0.00429]
[1759150653257,2.34397789,112090.0,112080.0,0.00429]
[1759150654354,2.32278335,112090.0,112080.0,0.00429]
[1759150655165,2.34376125,112090.0,112080.0,0.00429]
[1759150655368,2.31174918,112090.0,112080.0,0.00429]
[1759150656469,2.44383137,112090.0,112080.0,0.00429]
[1759150657168,2.44383137,112090.0,112080.0,0.00389]
[1759150657371,2.44383137,112090.0,112080.0,0.00429]
[1759150657868,2.42285347,112090.0,112080.0,0.00429]
[1759150658168,2.44386174,112090.0,112080.0,0.00429]
[1759150660271,2.04334174,112090.0,112080.0,0.00429]
[1759150660963,2.04342174,112090.0,112080.0,0.00429]
[1759150661369,1.21978174,112090.0,112080.0,0.00429]
[1759150661675,2.04330174,112090.0,112080.0,0.00429]
[1759150663276,2.44330174,112090.0,112080.0,0.00429]
[1759150663476,0.125539,112070.0,112060.0,0.4499921]
[1759150663680,1.20730824,112070.0,112060.0,0.4722721]
[1759150663870,1.20730824,112070.0,112060.0,0.4730721]
[1759150664177,1.2289568,112070.0,112060.0,0.4730721]
[1759150664570,1.24963877,112070.0,112060.0,0.4722721]
[1759150664968,1.24963877,112070.0,112060.0,0.38348]
[1759150665167,1.24963877,112070.0,112060.0,0.3612]
[1759150665374,1.61043877,112070.0,112060.0,0.0004]
[1759150665573,1.89444801,112070.0,112060.0,0.005]
[1759150665870,1.89444801,112070.0,112060.0,0.0054]
[1759150666175,0.125547,112060.0,112050.0,0.3608]
[1759150666375,0.73384085,112060.0,112050.0,0.3616]
[1759150666563,0.73384085,112060.0,112050.0,0.3608]
[1759150666762,0.73384085,112060.0,112050.0,0.38308]
[1759150666966,1.04170237,112060.0,112050.0,0.38348]
[1759150667171,1.29971161,112060.0,112050.0,0.3612]
[1759150667372,1.55772085,112060.0,112050.0,0.3612]
[1759150667572,1.55772085,112060.0,112050.0,0.0004]
[1759150667975,1.29971161,112060.0,112050.0,0.0004]
[1759150668175,1.57772085,112060.0,112050.0,0.0004]
[1759150668577,0.1215749,112050.0,112040.0,0.38397]
[1759150668774,0.63759338,112050.0,112040.0,0.38397]
[1759150669076,0.63759338,112050.0,112040.0,0.38504]
[1759150669275,0.63759338,112050.0,112040.0,0.4742529]
[1759150669476,0.63359338,112050.0,112040.0,0.38424]
[1759150669975,1.47583338,112050.0,112040.0,0.4734529]
[1759150670177,1.47583338,112050.0,112040.0,0.4738529]
[1759150670378,1.49083338,112050.0,112040.0,0.4778529]
[1759150670676,1.49107338,112050.0,112040.0,0.4778529]
[1759150670876,0.9749749,112050.0,112040.0,0.4778529]
[1759150671071,0.40858414,112050.0,112040.0,0.4778529]
[1759150671272,0.9831749,112050.0,112040.0,0.4778529]
[1759150671472,0.41558414,112050.0,112040.0,0.4778529]
[1759150671671,1.26386337,112050.0,112040.0,0.4778529]
[1759150672180,0.43722337,112050.0,112040.0,0.4778529]
[1759150672381,1.26394337,112050.0,112040.0,0.4778529]
[1759150673968,0.17921413,112050.0,112040.0,0.4904929]
[1759150674174,1.26398337,112050.0,112040.0,0.4778529]
[1759150674875,1.27266975,112050.0,112040.0,0.4778529]
[1759150675285,0.44590975,112050.0,112040.0,0.4778529]
[1759150675577,1.53331899,112050.0,112040.0,0.36609]
[1759150676084,1.53331899,112050.0,112040.0,0.38864]
[1759150676284,1.53331899,112050.0,112040.0,0.38775]
[1759150676475,0.70391899,112050.0,112040.0,0.4769629]
[1759150676671,1.53415899,112050.0,112040.0,0.4769629]
[1759150679380,1.01774051,112050.0,112040.0,0.4769629]
[1759150679578,0.70391899,112050.0,112040.0,0.4769629]
[1759150679779,1.53355899,112050.0,112040.0,0.4769629]
[1759150680385,1.27626975,112050.0,112040.0,0.4769629]
[1759150680885,1.53427899,112050.0,112040.0,0.4769629]
[1759150685190,0.70391899,112050.0,112040.0,0.4769629]
[1759150685589,1.53367899,112050.0,112040.0,0.4769629]
[1759150685990,1.01766051,112050.0,112040.0,0.4769629]
[1759150686292,1.53367899,112050.0,112040.0,0.4769629]
[1759150687391,1.53367899,112050.0,112040.0,0.38775]
[1759150690398,1.89447899,112050.0,112040.0,0.02695]
[1759150690895,1.89447899,112050.0,112040.0,0.0044]
[1759150691491,1.92649106,112050.0,112040.0,0.004]
[1759150691793,1.92649106,112050.0,112040.0,0.0044]
[1759150691996,1.09673106,112050.0,112040.0,0.0044]
[1759150692189,1.92577106,112050.0,112040.0,0.0044]
[1759150693092,1.09673106,112050.0,112040.0,0.0044]
[1759150693294,1.92541106,112050.0,112040.0,0.0044]
[1759150693595,1.09673106,112050.0,112040.0,0.02695]
[1759150693793,2.05867744,112050.0,112040.0,0.1161629]
[1759150693993,1.22991744,112050.0,112040.0,0.1161629]
[1759150694196,2.05895744,112050.0,112040.0,0.1161629]
[1759150694388,2.10635763,112050.0,112040.0,0.1161629]
[1759150694896,2.10635763,112050.0,112040.0,0.02695]
[1759150695396,0.76137915,112050.0,112040.0,0.1161629]
[1759150695594,2.10619763,112050.0,112040.0,0.1161629]
[1759150696194,1.84844112,112050.0,112040.0,0.1161629]
[1759150696391,1.27790309,112050.0,112040.0,0.1161629]
[1759150696697,1.11835888,112050.0,112040.0,0.1161629]
[1759150697098,1.91486681,112050.0,112040.0,0.1161629]
[1759150697290,0.86009691,112050.0,112040.0,0.1161629]
[1759150697492,1.29596484,112050.0,112040.0,0.1294229]
[1759150698693,1.55422681,112050.0,112040.0,0.02695]
[1759150699402,0.72554681,112050.0,112040.0,0.02695]
[1759150699602,1.55382681,112050.0,112040.0,0.1161629]
[1759150700004,1.53270445,112050.0,112040.0,0.1161629]
[1759150700204,1.51106522,112050.0,112040.0,0.02695]
[1759150702203,1.53274795,112050.0,112040.0,0.02695]
[1759150702707,0.07615273,112050.0,112040.0,1.14890487]
[1759150702998,1.2518496,112050.0,112040.0,0.8906429]
[1759150703198,1.00230854,112050.0,112040.0,1.14890487]
[1759150703403,0.8827,112050.0,112040.0,1.14890487]
[1759150703602,1.14096197,112050.0,112040.0,1.14890487]
[1759150703794,1.16308657,112050.0,112040.0,1.14890487]
[1759150704301,1.17204361,112050.0,112040.0,1.14890487]
[1759150705205,1.27398851,112050.0,112040.0,0.8906429]
[1759150705500,1.26124851,112050.0,112040.0,0.8906429]
[1759150705895,0.34376361,112050.0,112040.0,0.8906429]
[1759150706097,1.26124851,112050.0,112040.0,0.8906429]
[1759150706498,1.00298654,112050.0,112040.0,0.8906429]
[1759150706697,0.43296851,112050.0,112040.0,0.8906429]
[1759150707002,1.26132851,112050.0,112040.0,0.8906429]
[1759150708704,1.00306654,112050.0,112040.0,1.14890487]
[1759150708908,1.26132851,112050.0,112040.0,0.8906429]
[1759150709202,1.26132851,112050.0,112040.0,1.14890487]
[1759150711212,0.98138194,112050.0,112040.0,0.8906429]
[1759150711406,1.23964391,112050.0,112040.0,0.8906429]
[1759150711607,1.25238391,112050.0,112040.0,0.8906429]
[1759150712402,1.27405498,112050.0,112040.0,0.8906429]
[1759150714003,1.27405498,112050.0,112040.0,0.38775]
[1759150714208,1.53231695,112050.0,112040.0,0.38775]
[1759150714405,0.70395695,112050.0,112040.0,0.38775]
[1759150714705,0.44569498,112050.0,112040.0,0.4769629]
[1759150714906,0.44569498,112050.0,112040.0,0.4902429]
[1759150714907,1.27249498,112050.0,112040.0,0.4902429]
[1759150715107,0.44569498,112050.0,112040.0,0.4906429]
[1759150715307,1.27249498,112050.0,112040.0,0.4906429]
[1759150715508,0.44569498,112050.0,112040.0,0.4906429]
[1759150715709,1.27249498,112050.0,112040.0,0.4906429]
[1759150715909,1.27241498,112050.0,112040.0,0.4906429]
[1759150716406,1.01411301,112050.0,112040.0,0.74890487]
[1759150716602,1.00125301,112050.0,112040.0,0.74890487]
[1759150716910,0.43295498,112050.0,112040.0,0.74890487]
[1759150717302,1.25971498,112050.0,112040.0,0.74890487]
[1759150719210,0.43295498,112050.0,112040.0,0.74890487]
[1759150719414,1.25963498,112050.0,112040.0,0.74890487]
[1759150719612,1.25923498,112050.0,112040.0,0.74890487]
[1759150720611,1.25919498,112050.0,112040.0,0.74890487]
[1759150720808,0.08548811,112050.0,112040.0,1.14890487]
[1759150721012,1.14815901,112050.0,112040.0,1.40716684]
[1759150721212,1.14807901,112050.0,112040.0,1.14890487]
[1759150721613,0.05486,112050.0,112040.0,1.14890487]
[1759150721803,0.033,112050.0,112040.0,1.00716684]
[1759150722008,0.033,112050.0,112040.0,1.40716684]
[1759150723111,0.033,112050.0,112040.0,1.47137625]
[1759150723315,0.033,112050.0,112040.0,1.48042588]
[1759150724304,0.033,112050.0,112040.0,0.95485231]
[1759150724509,0.033,112050.0,112040.0,1.78177231]
[1759150724711,0.033,112050.0,112040.0,1.47137625]
[1759150724911,0.033,112050.0,112040.0,2.29849625]
[1759150727522,0.02053083,112070.0,112050.0,0.0892029]
[1759150727711,0.02053083,112070.0,112060.0,2.18916094]
[1759150728112,0.02053083,112070.0,112060.0,2.58916094]
[1759150728312,0.02053083,112070.0,112060.0,1.76180094]
[1759150728313,0.10971783,112070.0,112060.0,1.76180094]
[1759150728624,0.10971783,112070.0,112060.0,2.58920094]
[1759150728918,0.06653083,112070.0,112060.0,2.58920094]
[1759150729119,0.07653083,112070.0,112060.0,2.59220094]
[1759150729522,0.16571783,112070.0,112060.0,2.59220094]
[1759150729818,0.10971783,112070.0,112060.0,2.58920094]
[1759150730221,0.089187,112070.0,112060.0,2.58920094]
[1759150732214,0.089187,112070.0,112060.0,1.76180094]
[1759150732416,0.089187,112070.0,112060.0,2.58872094]
[1759150733621,0.089187,112070.0,112060.0,2.58836094]
[1759150734725,0.089187,112070.0,112060.0,1.76180094]
[1759150734924,0.089187,112070.0,112060.0,2.58812094]
[1759150738029,0.089187,112070.0,112060.0,2.071597]
[1759150738329,0.089187,112070.0,112060.0,2.58812094]
[1759150738628,0.089187,112070.0,112060.0,1.76180094]
[1759150738830,0.089187,112070.0,112060.0,2.58752094]
[1759150740328,0.378678,112080.0,112070.0,0.1107472]
[1759150740527,0.378678,112080.0,112070.0,0.72980917]
[1759150740920,0.40014912,112080.0,112070.0,0.72980917]
[1759150741126,0.14188715,112080.0,112070.0,0.72980917]
[1759150741332,0.40014912,112080.0,112070.0,0.72980917]
[1759150742225,0.41314912,112080.0,112070.0,0.73280917]
[1759150742832,0.40014912,112080.0,112070.0,0.72980917]
[1759150744226,0.40014912,112080.0,112070.0,0.74348917]
[1759150744430,0.41369912,112080.0,112070.0,1.2968672]
[1759150744725,0.15543715,112080.0,112070.0,1.55512917]
[1759150744930,0.41369912,112080.0,112070.0,1.55512917]
[1759150745121,0.41369912,112080.0,112070.0,1.55500917]
[1759150746435,0.41369912,112080.0,112070.0,0.72980917]
[1759150746936,0.41369912,112080.0,112070.0,1.55597917]
[1759150747229,0.67196109,112080.0,112070.0,1.55597917]
[1759150747432,0.67196109,112080.0,112070.0,0.73069917]
[1759150747633,0.67196109,112080.0,112070.0,0.4724372]
[1759150747834,0.67196109,112080.0,112070.0,0.73069917]
[1759150748235,0.41369912,112080.0,112070.0,0.73069917]
[1759150748434,0.67196109,112080.0,112070.0,0.73069917]
[1759150749036,0.65048997,112080.0,112070.0,0.73069917]
[1759150749237,0.67192843,112080.0,112070.0,0.73069917]
[1759150749738,0.32448196,112080.0,112070.0,0.73069917]
[1759150751027,0.32448196,112080.0,112070.0,0.4724372]
[1759150751236,0.32448196,112080.0,112070.0,0.73069917]
[1759150751833,0.06621999,112080.0,112070.0,0.4724372]
[1759150752037,0.32448196,112080.0,112070.0,0.73069917]
[1759150752533,0.41366256,112080.0,112070.0,0.73069917]
[1759150753239,0.67192453,112080.0,112070.0,0.73069917]
[1759150753438,0.67192453,112080.0,112070.0,0.4724372]
[1759150755143,0.67192453,112080.0,112070.0,0.73069917]
[1759150755337,0.67192453,112080.0,112070.0,0.4724372]
[1759150756741,0.65048607,112080.0,112070.0,0.4724372]
[1759150756942,0.67196601,112080.0,112070.0,0.4724372]
[1759150758241,0.41349463,112080.0,112070.0,0.4724372]
[1759150759642,0.15544207,112080.0,112070.0,0.4724372]
[1759150759940,0.41349463,112080.0,112070.0,0.4724372]
[1759150766346,0.15544207,112080.0,112070.0,0.4724372]
[1759150766545,0.41349463,112080.0,112070.0,0.4724372]
[1759150769049,0.32431403,112080.0,112070.0,0.4724372]
[1759150770753,0.41349383,112080.0,112070.0,0.4724372]
[1759150771154,0.32431403,112080.0,112070.0,0.4724372]
[1759150772559,0.06626147,112080.0,112070.0,0.4789072]
[1759150772866,0.32431403,112080.0,112070.0,0.4789072]
[1759150776675,0.3242986,112080.0,112070.0,0.4789072]
[1759150779371,0.02146451,112080.0,112070.0,1.13695976]
[1759150779666,0.10725777,112100.0,112090.0,0.1123517]
[1759150779869,0.12872518,112100.0,112090.0,0.4731517]
[1759150780572,0.12872518,112100.0,112090.0,0.74397426]
[1759150781469,0.12872518,112100.0,112090.0,0.4859217]
[1759150781768,0.16872518,112100.0,112090.0,0.4929217]
[1759150782163,0.43562974,112100.0,112090.0,0.4929217]
[1759150782364,0.41562974,112100.0,112090.0,0.4899217]
[1759150782972,0.40288974,112100.0,112090.0,0.4908117]
[1759150783373,0.14483718,112100.0,112090.0,0.4908117]
[1759150783575,0.40288974,112100.0,112090.0,0.4908117]
[1759150783765,0.49205354,112100.0,112090.0,0.4908117]
[1759150783965,0.23400098,112100.0,112090.0,0.4908117]
[1759150785178,0.50494354,112100.0,112090.0,0.4780417]
[1759150789870,0.50494354,112100.0,112090.0,0.4780427]
[1759150790264,0.50494354,112100.0,112090.0,0.02807]
[1759150790475,0.86574354,112100.0,112090.0,0.02847]
[1759150790678,0.50494354,112100.0,112090.0,0.02847]
[1759150791075,0.50494354,112100.0,112090.0,0.38887]
[1759150791278,0.50494354,112100.0,112090.0,0.4780421]
[1759150791574,0.50494354,112100.0,112090.0,0.4784421]
[1759150794979,1.32810354,112100.0,112090.0,0.4780421]
[1759150795483,1.32810354,112100.0,112090.0,0.4548621]
[1759150795778,1.32810354,112100.0,112090.0,0.4552621]
[1759150796078,1.32810354,112100.0,112090.0,0.4777821]
[1759150796682,1.32810354,112100.0,112090.0,0.38861]
[1759150797783,1.32810354,112100.0,112090.0,0.4777827]
[1759150798284,1.33893742,112100.0,112090.0,0.38861]
[1759150800281,2.09973742,112100.0,112090.0,0.00529]
[1759150800482,2.09973742,112100.0,112090.0,0.00489]
[1759150800781,2.09973742,112100.0,112090.0,0.00529]
[1759150801285,1.27657742,112100.0,112090.0,0.00529]
[1759150801486,1.27657742,112100.0,112090.0,0.00489]
[1759150801687,2.09965742,112100.0,112090.0,0.00489]
[1759150801985,2.09965742,112100.0,112090.0,0.00529]
[1759150802782,2.13167924,112100.0,112090.0,0.00529]
[1759150802986,2.13167924,112100.0,112090.0,0.00489]
[1759150803182,0.1253101,112080.0,112070.0,0.3608]
[1759150803378,0.1253186,112070.0,112060.0,0.02252]
[1759150803586,0.40483857,112070.0,112060.0,0.02252]
[1759150803787,1.22791857,112070.0,112060.0,0.02252]
[1759150803987,1.22791857,112070.0,112060.0,0.02292]
[1759150804378,0.98069989,112070.0,112060.0,0.4729166]
[1759150804582,0.06843129,112070.0,112060.0,0.73096916]
[1759150804785,0.01083388,112070.0,112060.0,0.74373916]
[1759150805188,0.03483388,112070.0,112060.0,0.74973916]
[1759150805389,0.03483388,112070.0,112060.0,1.14973916]
[1759150805689,0.03483388,112070.0,112060.0,1.97281916]
[1759150806794,0.02483388,112070.0,112060.0,1.96981916]
[1759150809385,0.10743777,112100.0,112090.0,0.1116927]
[1759150809686,0.12885816,112100.0,112090.0,0.73054526]
[1759150810288,0.21802286,112100.0,112090.0,0.38332]
[1759150810590,0.47607635,112100.0,112090.0,0.38372]
[1759150810790,0.49807635,112100.0,112090.0,0.4758927]
[1759150811094,0.15085909,112100.0,112090.0,0.4758927]
[1759150811392,0.47665443,112100.0,112090.0,0.4758927]
[1759150812096,0.45465443,112100.0,112090.0,0.4728927]
[1759150812392,0.47607637,112100.0,112090.0,0.1120927]
[1759150813493,0.38691227,112100.0,112090.0,0.1120927]
[1759150814291,0.47607627,112100.0,112090.0,0.1120927]
[1759150815194,0.45465433,112100.0,112090.0,0.4728927]
[1759150818401,0.38691227,112100.0,112090.0,0.4728927]
[1759150818600,0.36549033,112100.0,112090.0,0.4728927]
[1759150819595,0.30178105,112110.0,112100.0,0.1122944]
[1759150819901,1.14616255,112110.0,112100.0,0.4730944]
[1759150820200,1.14600961,112110.0,112100.0,0.4730944]
[1759150820397,0.32304961,112110.0,112100.0,0.73099402]
[1759150820995,0.34104961,112110.0,112100.0,0.73399402]
[1759150821192,0.41075338,112110.0,112100.0,0.73399402]
[1759150821495,0.40169489,112110.0,112100.0,0.73399402]
[1759150822200,0.43469489,112110.0,112100.0,0.74099402]
[1759150824802,0.38369489,112110.0,112100.0,0.73099402]
[1759150826195,0.03467,112110.0,112100.0,0.98889364]
[1759150826396,0.93361731,112120.0,112100.0,0.98889364]
[1759150826601,0.3226653,112120.0,112110.0,0.73098632]
[1759150826798,0.3226653,112120.0,112110.0,0.74375632]
[1759150826999,0.3226653,112120.0,112110.0,0.4730867]
[1759150827204,0.3226653,112120.0,112110.0,0.73098632]
[1759150827405,0.30125803,112120.0,112110.0,0.73098632]
[1759150827801,0.32025803,112120.0,112110.0,0.73398632]
[1759150828306,0.31156962,112120.0,112110.0,0.73398632]
[1759150828799,0.32456962,112120.0,112110.0,0.73098632]
[1759150829402,0.58246924,112120.0,112110.0,0.4730867]
[1759150829800,0.58846924,112120.0,112110.0,0.4790867]
[1759150830605,0.07267,112120.0,112110.0,0.4790867]
[1759150830800,0.65879438,112120.0,112110.0,0.4790867]
[1759150831001,0.68892223,112120.0,112110.0,0.4790867]
[1759150831405,0.17312299,112120.0,112110.0,0.4790867]
[1759150831606,0.16438784,112120.0,112110.0,0.4790867]
[1759150831805,0.68018708,112120.0,112110.0,0.4790867]
[1759150832198,0.16438784,112120.0,112110.0,0.73698632]
[1759150832400,0.29589962,112120.0,112110.0,0.74975632]
[1759150833004,0.31770962,112120.0,112110.0,0.4790867]
[1759150833203,0.58851924,112120.0,112110.0,1.55982632]
[1759150833397,0.58851924,112120.0,112110.0,0.73698632]
[1759150833604,0.58851924,112120.0,112110.0,1.3018867]
[1759150833804,0.58851924,112120.0,112110.0,0.4790867]
[1759150834004,0.58851924,112120.0,112110.0,1.3018867]
[1759150834405,0.58851924,112120.0,112110.0,0.4790867]
[1759150834611,0.58851924,112120.0,112110.0,1.3018867]
[1759150834813,0.07272,112120.0,112110.0,1.3018867]
[1759150835015,0.58851924,112120.0,112110.0,1.3018867]
[1759150836419,0.58851924,112120.0,112110.0,0.4790867]
[1759150836917,0.58851924,112120.0,112110.0,1.3018467]
[1759150837909,0.9569838,112120.0,112110.0,0.4790867]
[1759150838214,2.1797438,112120.0,112110.0,0.3672]
[1759150838406,1.3569838,112120.0,112110.0,0.0064]
[1759150838613,1.3569838,112120.0,112110.0,0.1182867]
[1759150838814,2.1797438,112120.0,112110.0,0.1182867]
[1759150839317,2.1797438,112120.0,112110.0,0.1186867]
[1759150839516,1.7797438,112120.0,112110.0,0.1186867]
[1759150840114,1.7797438,112120.0,112110.0,0.4794867]
[1759150840410,0.9569838,112120.0,112110.0,0.4794867]
[1759150840609,1.7797038,112120.0,112110.0,0.1186867]
[1759150840803,1.7797038,112120.0,112110.0,0.4794867]
[1759150841305,1.7797038,112120.0,112110.0,0.1186867]
[1759150842118,1.7797438,112120.0,112110.0,0.1186867]
[1759150842413,1.7797038,112120.0,112110.0,0.1186867]
[1759150842620,1.690555,112120.0,112110.0,0.1186867]
[1759150843207,0.867835,112120.0,112110.0,0.1186867]
[1759150843408,0.60993538,112120.0,112110.0,0.1186867]
[1759150843619,0.09413614,112120.0,112110.0,0.4794867]
[1759150843816,0.30880962,112120.0,112110.0,0.4794867]
[1759150844117,0.33061962,112120.0,112110.0,0.4794867]
[1759150844307,0.33061962,112120.0,112110.0,0.73738632]
[1759150844502,0.33061962,112120.0,112110.0,0.4794867]
[1759150844918,0.07272,112120.0,112110.0,0.4794867]
[1759150845119,0.58851924,112120.0,112110.0,0.4794867]
[1759150845416,0.33061962,112120.0,112110.0,0.73738632]
[1759150846013,0.58851924,112120.0,112110.0,0.73738632]
[1759150846316,0.33061962,112120.0,112110.0,0.73738632]
[1759150847318,0.038,112120.0,112110.0,1.57287632]
[1759150847621,0.29589962,112120.0,112110.0,1.57287632]
[1759150847804,0.29589962,112120.0,112110.0,1.56010632]
[1759150848120,0.07272,112120.0,112110.0,1.56006632]
[1759150848619,0.33061962,112120.0,112110.0,1.56006632]
[1759150853721,0.07272,112120.0,112110.0,1.56006632]
[1759150853923,0.29589962,112120.0,112110.0,1.57283632]
[1759150854215,0.038,112120.0,112110.0,1.97283632]
[1759150854813,0.038,112120.0,112110.0,1.97279632]
[1759150855918,0.057,112120.0,112110.0,1.97679632]
[1759150856119,0.031,112120.0,112110.0,1.97279632]
[1759150856424,0.031,112120.0,112110.0,1.15015632]
[1759150856615,0.031,112120.0,112110.0,1.97279632]